[Event "Late-Titled-Tuesday-Blitz-April-23-2024"]
[Site "Chess.com"]
[Date "2024.04.23"]
[Round "10"]
[White "th3d4rkness"]
[Black "jcmesafischer"]
[Result "1-0"]
[WhiteElo "2150"]
[BlackElo "2351"]
[TimeControl "180+1"]
[EndTime "15:56:54 PDT"]
[Termination "th3d4rkness won on time"]

1. e4 {[%clk 0:03:00.9]} 1... c5 {[%clk 0:02:59.7]} 2. Nf3 {[%clk 0:03:00.5]}
2... d6 {[%clk 0:02:58.7]} 3. d4 {[%clk 0:02:58]} 3... cxd4 {[%clk 0:02:59.2]}
4. Nxd4 {[%clk 0:02:58.3]} 4... Nf6 {[%clk 0:02:59.6]} 5. Nc3 {[%clk 0:02:58.7]}
5... a6 {[%clk 0:02:45.8]} 6. Bg5 {[%clk 0:02:58]} 6... e6 {[%clk 0:02:41.3]} 7.
Qe2 {[%clk 0:02:53.2]} 7... Nbd7 {[%clk 0:02:38.3]} 8. O-O-O {[%clk 0:02:51.8]}
8... Be7 {[%clk 0:02:34.1]} 9. f4 {[%clk 0:02:50.4]} 9... Qc7 {[%clk 0:02:27.8]}
10. Kb1 {[%clk 0:02:49.1]} 10... O-O {[%clk 0:02:12.2]} 11. g4 {[%clk
0:02:44.7]} 11... b5 {[%clk 0:02:10.2]} 12. Bxf6 {[%clk 0:02:28.1]} 12... Bxf6
{[%clk 0:01:40.7]} 13. g5 {[%clk 0:02:21]} 13... Be7 {[%clk 0:01:19.1]} 14. a3
{[%clk 0:02:17.9]} 14... Rb8 {[%clk 0:01:00.4]} 15. h4 {[%clk 0:02:10.4]} 15...
b4 {[%clk 0:00:59.2]} 16. axb4 {[%clk 0:01:54.2]} 16... Rxb4 {[%clk 0:01:00.1]}
17. Nb3 {[%clk 0:01:52.4]} 17... Nc5 {[%clk 0:00:57.6]} 18. Nxc5 {[%clk
0:01:37.5]} 18... Qxc5 {[%clk 0:00:49.7]} 19. Rh3 {[%clk 0:01:34.5]} 19... Bb7
{[%clk 0:00:45.4]} 20. Bg2 {[%clk 0:01:31.4]} 20... Rb8 {[%clk 0:00:41.3]} 21.
b3 {[%clk 0:01:19.4]} 21... a5 {[%clk 0:00:34.7]} 22. Na2 {[%clk 0:01:18.8]}
22... Rb6 {[%clk 0:00:28.3]} 23. Nc1 {[%clk 0:01:14.4]} 23... g6 {[%clk
0:00:22.7]} 24. h5 {[%clk 0:01:13.4]} 24... a4 {[%clk 0:00:19.5]} 25. hxg6
{[%clk 0:01:11.2]} 25... fxg6 {[%clk 0:00:17.3]} 26. Rdh1 {[%clk 0:01:00.9]}
26... h5 {[%clk 0:00:08.6]} 27. gxh6 {[%clk 0:01:00]} 27... Bf6 {[%clk
0:00:07.1]} 28. h7+ {[%clk 0:00:55.5]} 28... Kh8 {[%clk 0:00:07]} 29. e5 {[%clk
0:00:48.9]} 29... Bxg2 {[%clk 0:00:02.4]} 30. Qxg2 {[%clk 0:00:47.2]} 30... dxe5
{[%clk 0:00:02]} 31. Qxg6 {[%clk 0:00:45.7]} 1-0

[Event "Late-Titled-Tuesday-Blitz-April-23-2024"]
[Site "Chess.com"]
[Date "2024.04.23"]
[Round "10"]
[White "Zura_19"]
[Black "chessdjw"]
[Result "1-0"]
[WhiteElo "2628"]
[BlackElo "2777"]
[TimeControl "180+1"]
[EndTime "15:57:00 PDT"]
[Termination "Zura_19 won by checkmate"]

1. e4 {[%clk 0:03:00.2]} 1... c5 {[%clk 0:02:57.7]} 2. Nf3 {[%clk 0:03:00.3]}
2... d6 {[%clk 0:02:57]} 3. d4 {[%clk 0:02:58.7]} 3... cxd4 {[%clk 0:02:57.3]}
4. Nxd4 {[%clk 0:02:59.6]} 4... Nf6 {[%clk 0:02:57.8]} 5. Nc3 {[%clk 0:03:00]}
5... a6 {[%clk 0:02:58.1]} 6. Bc4 {[%clk 0:02:59.2]} 6... e6 {[%clk 0:02:58]} 7.
Bb3 {[%clk 0:02:59.6]} 7... Nbd7 {[%clk 0:02:58.2]} 8. O-O {[%clk 0:02:58.2]}
8... Nc5 {[%clk 0:02:52.1]} 9. f4 {[%clk 0:02:46.5]} 9... Ncxe4 {[%clk
0:02:33.7]} 10. Nxe4 {[%clk 0:02:44.7]} 10... Nxe4 {[%clk 0:02:34.6]} 11. f5
{[%clk 0:02:42.3]} 11... d5 {[%clk 0:02:19.8]} 12. fxe6 {[%clk 0:02:34.4]} 12...
Bxe6 {[%clk 0:02:19.1]} 13. Nxe6 {[%clk 0:01:59.5]} 13... fxe6 {[%clk
0:02:18.1]} 14. Qh5+ {[%clk 0:01:59.9]} 14... Kd7 {[%clk 0:01:10]} 15. Be3
{[%clk 0:01:35]} 15... Bc5 {[%clk 0:01:09.2]} 16. Bxc5 {[%clk 0:01:30.9]} 16...
Nxc5 {[%clk 0:01:10.1]} 17. Bxd5 {[%clk 0:01:13.2]} 17... Qb6 {[%clk 0:00:57]}
18. Bf3 {[%clk 0:00:43.9]} 18... Rad8 {[%clk 0:00:45.4]} 19. Kh1 {[%clk
0:00:37.8]} 19... Kc8 {[%clk 0:00:42.2]} 20. b4 {[%clk 0:00:37.2]} 20... Nd7
{[%clk 0:00:39.4]} 21. Rab1 {[%clk 0:00:35.2]} 21... Kb8 {[%clk 0:00:30.2]} 22.
c4 {[%clk 0:00:35.2]} 22... Nf6 {[%clk 0:00:28.6]} 23. Qe5+ {[%clk 0:00:33.5]}
23... Qd6 {[%clk 0:00:28]} 24. Qa5 {[%clk 0:00:31.8]} 24... Qc7 {[%clk
0:00:26.5]} 25. Qa3 {[%clk 0:00:28.1]} 25... Qxc4 {[%clk 0:00:22.9]} 26. b5
{[%clk 0:00:26.3]} 26... axb5 {[%clk 0:00:19.3]} 27. Rfc1 {[%clk 0:00:26.3]}
27... Rd3 {[%clk 0:00:14.3]} 28. Qe7 {[%clk 0:00:20.5]} 28... Rc3 {[%clk
0:00:14.3]} 29. Qxb7# {[%clk 0:00:20.2]} 1-0

[Event "Late-Titled-Tuesday-Blitz-April-23-2024"]
[Site "Chess.com"]
[Date "2024.04.23"]
[Round "10"]
[White "Supelyel"]
[Black "VladimirBugayev"]
[Result "1-0"]
[WhiteElo "2395"]
[BlackElo "2236"]
[TimeControl "180+1"]
[EndTime "15:57:02 PDT"]
[Termination "Supelyel won on time"]

1. c4 {[%clk 0:02:58]} 1... c5 {[%clk 0:02:59.6]} 2. g3 {[%clk 0:02:55.9]} 2...
g6 {[%clk 0:03:00.3]} 3. Bg2 {[%clk 0:02:55.8]} 3... Bg7 {[%clk 0:03:01]} 4. Nf3
{[%clk 0:02:56]} 4... Nc6 {[%clk 0:02:59.4]} 5. O-O {[%clk 0:02:54.7]} 5... d6
{[%clk 0:02:59.7]} 6. Nc3 {[%clk 0:02:54.7]} 6... e5 {[%clk 0:02:59.1]} 7. d3
{[%clk 0:02:54.7]} 7... Nge7 {[%clk 0:02:58.7]} 8. Bg5 {[%clk 0:02:54.9]} 8...
f6 {[%clk 0:02:56.6]} 9. Bd2 {[%clk 0:02:54.9]} 9... O-O {[%clk 0:02:56]} 10. a3
{[%clk 0:02:54.9]} 10... a5 {[%clk 0:02:55.3]} 11. Nd5 {[%clk 0:02:52.5]} 11...
Nxd5 {[%clk 0:02:53.1]} 12. cxd5 {[%clk 0:02:52.3]} 12... Ne7 {[%clk 0:02:53.2]}
13. Ne1 {[%clk 0:02:33.1]} 13... b5 {[%clk 0:02:33.4]} 14. b4 {[%clk 0:02:19.2]}
14... cxb4 {[%clk 0:02:31.7]} 15. axb4 {[%clk 0:02:18.9]} 15... a4 {[%clk
0:02:32.4]} 16. Nc2 {[%clk 0:02:19.2]} 16... Bb7 {[%clk 0:02:16.1]} 17. e4
{[%clk 0:02:19.1]} 17... Bc8 {[%clk 0:02:10.9]} 18. Na3 {[%clk 0:02:18.1]} 18...
Bd7 {[%clk 0:02:11]} 19. Rc1 {[%clk 0:02:14.8]} 19... f5 {[%clk 0:02:05.5]} 20.
Qe2 {[%clk 0:02:08.2]} 20... f4 {[%clk 0:01:56.8]} 21. Rc2 {[%clk 0:02:08.3]}
21... Rc8 {[%clk 0:01:55.8]} 22. Rfc1 {[%clk 0:02:08]} 22... Rxc2 {[%clk
0:01:54.7]} 23. Rxc2 {[%clk 0:02:08.9]} 23... Qb6 {[%clk 0:01:46.2]} 24. Be1
{[%clk 0:01:44.1]} 24... h5 {[%clk 0:01:15.2]} 25. Qd1 {[%clk 0:01:41.3]} 25...
fxg3 {[%clk 0:00:47.4]} 26. hxg3 {[%clk 0:01:39.1]} 26... Rc8 {[%clk 0:00:47.8]}
27. Bd2 {[%clk 0:01:27.3]} 27... Bg4 {[%clk 0:00:32.2]} 28. Qc1 {[%clk
0:01:22.6]} 28... Bd7 {[%clk 0:00:28.3]} 29. Be3 {[%clk 0:01:22.3]} 29... Rxc2
{[%clk 0:00:25.8]} 30. Qxc2 {[%clk 0:01:21]} 30... Qb7 {[%clk 0:00:22.9]} 31.
Bg5 {[%clk 0:01:19.3]} 31... Nc8 {[%clk 0:00:17.2]} 32. Kh2 {[%clk 0:01:14.1]}
32... Kh7 {[%clk 0:00:16.8]} 33. Bh3 {[%clk 0:01:14.5]} 33... Bh6 {[%clk
0:00:16.3]} 34. Bf6 {[%clk 0:00:53.6]} 34... Bxh3 {[%clk 0:00:14.9]} 35. Kxh3
{[%clk 0:00:53.5]} 35... Qd7+ {[%clk 0:00:14.8]} 36. Kg2 {[%clk 0:00:53.4]}
36... Bg7 {[%clk 0:00:13.2]} 37. Bg5 {[%clk 0:00:51.7]} 37... Bh6 {[%clk
0:00:13]} 38. Bxh6 {[%clk 0:00:52]} 38... Kxh6 {[%clk 0:00:13.1]} 39. Qc6 {[%clk
0:00:51.4]} 39... Qxc6 {[%clk 0:00:07.2]} 40. dxc6 {[%clk 0:00:51.3]} 1-0

[Event "Late-Titled-Tuesday-Blitz-April-23-2024"]
[Site "Chess.com"]
[Date "2024.04.23"]
[Round "10"]
[White "only_strong_moves"]
[Black "dropstoneDP"]
[Result "0-1"]
[WhiteElo "2724"]
[BlackElo "3000"]
[TimeControl "180+1"]
[EndTime "15:57:04 PDT"]
[Termination "dropstoneDP won by resignation"]

1. Nc3 {[%clk 0:03:00.9]} 1... Nf6 {[%clk 0:02:59.1]} 2. e4 {[%clk 0:03:00.3]}
2... e5 {[%clk 0:02:59.2]} 3. Bc4 {[%clk 0:03:01]} 3... Nxe4 {[%clk 0:02:58.9]}
4. Qh5 {[%clk 0:03:00.4]} 4... Nd6 {[%clk 0:02:59.4]} 5. Qxe5+ {[%clk
0:03:00.7]} 5... Qe7 {[%clk 0:02:59.2]} 6. Qxe7+ {[%clk 0:03:01.3]} 6... Bxe7
{[%clk 0:03:00.1]} 7. Bb3 {[%clk 0:03:01.8]} 7... Nf5 {[%clk 0:02:58.1]} 8. Nf3
{[%clk 0:03:01.5]} 8... c6 {[%clk 0:02:57.5]} 9. d4 {[%clk 0:03:00.5]} 9... d5
{[%clk 0:02:58]} 10. O-O {[%clk 0:03:00.3]} 10... O-O {[%clk 0:02:57.7]} 11. Bf4
{[%clk 0:02:58.8]} 11... Nd7 {[%clk 0:02:49.5]} 12. Rad1 {[%clk 0:02:55.4]}
12... Bd6 {[%clk 0:02:38.4]} 13. Ne5 {[%clk 0:02:34.4]} 13... Re8 {[%clk
0:02:14.3]} 14. Rfe1 {[%clk 0:02:23.6]} 14... Nxe5 {[%clk 0:02:06.8]} 15. Bxe5
{[%clk 0:02:06.5]} 15... Bb4 {[%clk 0:02:07.1]} 16. a3 {[%clk 0:01:34.8]} 16...
Bxc3 {[%clk 0:02:07.1]} 17. bxc3 {[%clk 0:01:35.7]} 17... b5 {[%clk 0:02:07.3]}
18. f3 {[%clk 0:01:31.8]} 18... f6 {[%clk 0:02:02.5]} 19. Bf4 {[%clk 0:01:29.6]}
19... Bd7 {[%clk 0:01:54.4]} 20. g4 {[%clk 0:01:28]} 20... g5 {[%clk 0:01:39.6]}
21. Bc7 {[%clk 0:01:19.2]} 21... Ng7 {[%clk 0:01:11.1]} 22. a4 {[%clk
0:01:07.7]} 22... a6 {[%clk 0:01:09.3]} 23. a5 {[%clk 0:01:07.6]} 23... Rxe1+
{[%clk 0:01:06.1]} 24. Rxe1 {[%clk 0:01:07.5]} 24... Re8 {[%clk 0:01:06.1]} 25.
Re4 {[%clk 0:00:59.9]} 25... Ne6 {[%clk 0:01:02]} 26. Rxe6 {[%clk 0:00:54.9]}
26... Bxe6 {[%clk 0:01:01.5]} 27. Kf2 {[%clk 0:00:54.5]} 27... Bf7 {[%clk
0:01:01.4]} 28. h3 {[%clk 0:00:54.4]} 28... Kg7 {[%clk 0:01:01.8]} 29. Bd6
{[%clk 0:00:54.3]} 29... h5 {[%clk 0:01:00.9]} 30. Bc7 {[%clk 0:00:49.9]} 30...
Rh8 {[%clk 0:00:57.5]} 31. Kg2 {[%clk 0:00:47.5]} 31... Be6 {[%clk 0:00:56.2]}
32. Bd6 {[%clk 0:00:46.5]} 32... Bd7 {[%clk 0:00:56.2]} 33. Bc7 {[%clk
0:00:45.7]} 33... Kg6 {[%clk 0:00:56.8]} 34. Ba2 {[%clk 0:00:35.1]} 34... hxg4
{[%clk 0:00:56.7]} 35. hxg4 {[%clk 0:00:34.5]} 35... f5 {[%clk 0:00:57.1]} 36.
Be5 {[%clk 0:00:25.9]} 36... Rf8 {[%clk 0:00:48.1]} 37. gxf5+ {[%clk 0:00:21.4]}
37... Bxf5 {[%clk 0:00:49]} 38. Bb1 {[%clk 0:00:21.1]} 38... g4 {[%clk 0:00:45]}
39. f4 {[%clk 0:00:19.2]} 39... Rf7 {[%clk 0:00:44.5]} 40. Kg3 {[%clk
0:00:19.1]} 40... Rh7 {[%clk 0:00:44.4]} 41. Kg2 {[%clk 0:00:19]} 41... Rh3
{[%clk 0:00:44.3]} 0-1

[Event "Late-Titled-Tuesday-Blitz-April-23-2024"]
[Site "Chess.com"]
[Date "2024.04.23"]
[Round "10"]
[White "CaspiIsrael"]
[Black "stollenmonster"]
[Result "0-1"]
[WhiteElo "2703"]
[BlackElo "2911"]
[TimeControl "180+1"]
[EndTime "15:57:07 PDT"]
[Termination "stollenmonster won by checkmate"]

1. e4 {[%clk 0:03:00.9]} 1... c5 {[%clk 0:02:59.5]} 2. Nf3 {[%clk 0:03:01.2]}
2... Nf6 {[%clk 0:03:00]} 3. Nc3 {[%clk 0:02:59.6]} 3... d5 {[%clk 0:02:59.8]}
4. e5 {[%clk 0:02:55.9]} 4... Ne4 {[%clk 0:02:59.2]} 5. Ne2 {[%clk 0:02:50.6]}
5... c4 {[%clk 0:02:59.2]} 6. d3 {[%clk 0:02:50.4]} 6... cxd3 {[%clk 0:02:59.2]}
7. cxd3 {[%clk 0:02:51]} 7... Nc5 {[%clk 0:02:59.7]} 8. d4 {[%clk 0:02:51.6]}
8... Ne4 {[%clk 0:02:59.5]} 9. Ng3 {[%clk 0:02:51.2]} 9... Nc6 {[%clk
0:02:58.1]} 10. Bd3 {[%clk 0:02:50.6]} 10... Nxg3 {[%clk 0:02:56.3]} 11. hxg3
{[%clk 0:02:51]} 11... Bg4 {[%clk 0:02:56.1]} 12. Be3 {[%clk 0:02:49.6]} 12...
e6 {[%clk 0:02:55.4]} 13. Rc1 {[%clk 0:02:47.5]} 13... Bb4+ {[%clk 0:02:54.4]}
14. Kf1 {[%clk 0:02:46.8]} 14... h5 {[%clk 0:02:50.7]} 15. a3 {[%clk 0:02:46.4]}
15... Be7 {[%clk 0:02:50.4]} 16. Qb3 {[%clk 0:02:46.1]} 16... Rb8 {[%clk
0:02:49.7]} 17. Nh2 {[%clk 0:02:31.2]} 17... Bf5 {[%clk 0:02:49.5]} 18. Bxf5
{[%clk 0:02:30.6]} 18... exf5 {[%clk 0:02:50.4]} 19. Nf3 {[%clk 0:02:30.7]}
19... Qd7 {[%clk 0:02:47]} 20. Ke2 {[%clk 0:02:23.7]} 20... g6 {[%clk
0:02:43.6]} 21. Rc2 {[%clk 0:02:23.4]} 21... O-O {[%clk 0:02:37.2]} 22. Rhc1
{[%clk 0:02:23.5]} 22... Na5 {[%clk 0:02:34.3]} 23. Qd3 {[%clk 0:02:22.6]} 23...
Rbc8 {[%clk 0:02:31]} 24. Bg5 {[%clk 0:02:19.6]} 24... Bxg5 {[%clk 0:02:26.3]}
25. Nxg5 {[%clk 0:02:15.9]} 25... Rc4 {[%clk 0:02:18.5]} 26. b3 {[%clk
0:02:10.7]} 26... Rc6 {[%clk 0:02:18.8]} 27. Nh3 {[%clk 0:02:08.3]} 27... Rfc8
{[%clk 0:02:08.4]} 28. Nf4 {[%clk 0:02:07.2]} 28... a6 {[%clk 0:02:03.8]} 29.
Ke3 {[%clk 0:01:58.4]} 29... Kg7 {[%clk 0:01:56.9]} 30. f3 {[%clk 0:01:53.6]}
30... Re8 {[%clk 0:01:49.3]} 31. Kf2 {[%clk 0:01:53.5]} 31... Qd8 {[%clk
0:01:44]} 32. Rc5 {[%clk 0:01:51.2]} 32... h4 {[%clk 0:01:40.3]} 33. Nxd5 {[%clk
0:01:38.3]} 33... hxg3+ {[%clk 0:01:40.2]} 34. Kxg3 {[%clk 0:01:38.9]} 34...
Qg5+ {[%clk 0:01:38.8]} 35. Kf2 {[%clk 0:01:38.8]} 35... Rxc5 {[%clk 0:01:24]}
36. Rxc5 {[%clk 0:01:37.3]} 36... Nxb3 {[%clk 0:01:24.5]} 37. Rc7 {[%clk
0:00:59.3]} 37... Nc1 {[%clk 0:01:19.4]} 38. Qe3 {[%clk 0:00:54.3]} 38... Qh4+
{[%clk 0:01:19.2]} 39. Kg1 {[%clk 0:00:50.1]} 39... Ne2+ {[%clk 0:00:56.5]} 40.
Qxe2 {[%clk 0:00:33.5]} 40... Qxd4+ {[%clk 0:00:56.3]} 41. Qe3 {[%clk 0:00:32]}
41... Qxd5 {[%clk 0:00:55.6]} 42. f4 {[%clk 0:00:30.7]} 42... Qd1+ {[%clk
0:00:53.2]} 43. Kf2 {[%clk 0:00:30]} 43... Rd8 {[%clk 0:00:52.1]} 44. Rc3 {[%clk
0:00:19.9]} 44... Rd2+ {[%clk 0:00:52]} 45. Kg3 {[%clk 0:00:19.6]} 45... Qg4+
{[%clk 0:00:52.2]} 46. Kh2 {[%clk 0:00:19.1]} 46... Qxg2# {[%clk 0:00:52.6]} 0-1

[Event "Late-Titled-Tuesday-Blitz-April-23-2024"]
[Site "Chess.com"]
[Date "2024.04.23"]
[Round "10"]
[White "protectiago"]
[Black "kalinchick"]
[Result "0-1"]
[WhiteElo "2073"]
[BlackElo "2426"]
[TimeControl "180+1"]
[EndTime "15:57:09 PDT"]
[Termination "kalinchick won on time"]

1. d4 {[%clk 0:02:59.5]} 1... Nf6 {[%clk 0:02:59.3]} 2. c4 {[%clk 0:02:59.6]}
2... e6 {[%clk 0:03:00]} 3. g3 {[%clk 0:02:59.7]} 3... d5 {[%clk 0:03:00.9]} 4.
Nf3 {[%clk 0:02:58.3]} 4... Be7 {[%clk 0:03:01]} 5. Bg2 {[%clk 0:02:58.6]} 5...
O-O {[%clk 0:03:01.6]} 6. Nbd2 {[%clk 0:02:57.4]} 6... b6 {[%clk 0:02:56.2]} 7.
Ne5 {[%clk 0:02:53.6]} 7... Bb7 {[%clk 0:02:54.2]} 8. Qa4 {[%clk 0:02:51.3]}
8... Nfd7 {[%clk 0:02:53]} 9. Ndf3 {[%clk 0:02:43.7]} 9... dxc4 {[%clk
0:02:50.1]} 10. O-O {[%clk 0:02:23.6]} 10... Nxe5 {[%clk 0:02:48.2]} 11. dxe5
{[%clk 0:02:23.5]} 11... c3 {[%clk 0:02:26.9]} 12. Rd1 {[%clk 0:02:16.4]} 12...
Qc8 {[%clk 0:02:25.3]} 13. bxc3 {[%clk 0:02:10.1]} 13... Rd8 {[%clk 0:02:11.7]}
14. Be3 {[%clk 0:00:54.6]} 14... Nd7 {[%clk 0:01:57.7]} 15. Qg4 {[%clk
0:00:43.7]} 15... Nf8 {[%clk 0:01:48.3]} 16. h4 {[%clk 0:00:31.6]} 16... Rxd1+
{[%clk 0:01:26.7]} 17. Rxd1 {[%clk 0:00:30.8]} 17... Qe8 {[%clk 0:01:25.9]} 18.
Bh6 {[%clk 0:00:23.3]} 18... g6 {[%clk 0:01:24.7]} 19. h5 {[%clk 0:00:19.7]}
19... Rd8 {[%clk 0:01:21.7]} 20. Rxd8 {[%clk 0:00:17.3]} 20... Qxd8 {[%clk
0:01:21.3]} 21. Bxf8 {[%clk 0:00:15.4]} 21... Bxf8 {[%clk 0:01:17.1]} 22. hxg6
{[%clk 0:00:14.4]} 22... hxg6 {[%clk 0:01:17.3]} 23. Ng5 {[%clk 0:00:12.7]}
23... Bxg2 {[%clk 0:01:15.5]} 24. Kxg2 {[%clk 0:00:12.2]} 24... Qd5+ {[%clk
0:01:16]} 25. Ne4 {[%clk 0:00:10.9]} 25... Qxe5 {[%clk 0:01:14.9]} 26. f3 {[%clk
0:00:08.3]} 26... Kg7 {[%clk 0:01:07.3]} 27. Qh4 {[%clk 0:00:07.7]} 27... Bd6
{[%clk 0:00:55.8]} 28. Qd8 {[%clk 0:00:04.2]} 28... a5 {[%clk 0:00:50.2]} 29.
Qd7 {[%clk 0:00:02.7]} 29... Kg8 {[%clk 0:00:38.6]} 30. Qe8+ {[%clk 0:00:01.9]}
30... Kg7 {[%clk 0:00:38.4]} 31. Qd7 {[%clk 0:00:01.9]} 31... Bc5 {[%clk
0:00:34.2]} 0-1

[Event "Late-Titled-Tuesday-Blitz-April-23-2024"]
[Site "Chess.com"]
[Date "2024.04.23"]
[Round "10"]
[White "chess_sharparchitect"]
[Black "Naruna_Chan"]
[Result "1-0"]
[WhiteElo "2257"]
[BlackElo "2390"]
[TimeControl "180+1"]
[EndTime "15:57:11 PDT"]
[Termination "chess_sharparchitect won on time"]

1. c4 {[%clk 0:03:00.9]} 1... e5 {[%clk 0:02:59.3]} 2. Nc3 {[%clk 0:03:00.4]}
2... Nf6 {[%clk 0:02:59.4]} 3. Nf3 {[%clk 0:03:00.5]} 3... d6 {[%clk 0:02:56.6]}
4. d4 {[%clk 0:02:59.9]} 4... exd4 {[%clk 0:02:56.3]} 5. Nxd4 {[%clk 0:02:54.4]}
5... Be7 {[%clk 0:02:55.8]} 6. g3 {[%clk 0:02:53.2]} 6... O-O {[%clk 0:02:56.2]}
7. Bg2 {[%clk 0:02:53.8]} 7... c6 {[%clk 0:02:49.4]} 8. e4 {[%clk 0:02:48.6]}
8... Be6 {[%clk 0:02:44.6]} 9. b3 {[%clk 0:02:44.5]} 9... d5 {[%clk 0:02:31.4]}
10. e5 {[%clk 0:02:28.1]} 10... Bb4 {[%clk 0:02:25]} 11. Bd2 {[%clk 0:02:19.5]}
11... Ne4 {[%clk 0:02:18.8]} 12. Nxe4 {[%clk 0:02:14.3]} 12... Bxd2+ {[%clk
0:02:12.3]} 13. Nxd2 {[%clk 0:02:10.9]} 13... dxc4 {[%clk 0:02:09.5]} 14. Nxe6
{[%clk 0:02:05.9]} 14... fxe6 {[%clk 0:02:09.1]} 15. Nxc4 {[%clk 0:02:05.3]}
15... Qg5 {[%clk 0:01:58.7]} 16. O-O {[%clk 0:01:59.1]} 16... Na6 {[%clk
0:01:56.8]} 17. Qd6 {[%clk 0:01:48.9]} 17... Rae8 {[%clk 0:01:52.6]} 18. Rad1
{[%clk 0:01:43]} 18... Nb8 {[%clk 0:01:23.2]} 19. Bh3 {[%clk 0:01:39.3]} 19...
Kh8 {[%clk 0:01:15.5]} 20. Bxe6 {[%clk 0:01:38.7]} 20... h5 {[%clk 0:00:47.8]}
21. Bh3 {[%clk 0:01:37]} 21... h4 {[%clk 0:00:46.3]} 22. Bg2 {[%clk 0:01:36.2]}
22... b5 {[%clk 0:00:39.8]} 23. Ne3 {[%clk 0:01:32.9]} 23... Qxe5 {[%clk
0:00:34.8]} 24. Qxe5 {[%clk 0:01:27.8]} 24... Rxe5 {[%clk 0:00:34.6]} 25. Rd4
{[%clk 0:01:24.1]} 25... hxg3 {[%clk 0:00:32.4]} 26. hxg3 {[%clk 0:01:24.2]}
26... g5 {[%clk 0:00:18]} 27. Rfd1 {[%clk 0:01:22.7]} 27... c5 {[%clk
0:00:13.8]} 28. Rd5 {[%clk 0:01:20.9]} 28... Rxd5 {[%clk 0:00:12]} 29. Rxd5
{[%clk 0:01:20.3]} 29... c4 {[%clk 0:00:11.6]} 30. bxc4 {[%clk 0:01:19.4]} 30...
bxc4 {[%clk 0:00:12.5]} 31. Nxc4 {[%clk 0:01:19]} 31... Rc8 {[%clk 0:00:12.4]}
32. Ne3 {[%clk 0:01:17.9]} 32... Nc6 {[%clk 0:00:11.1]} 33. Rxg5 {[%clk
0:01:17]} 33... Nd4 {[%clk 0:00:11.6]} 34. Rh5+ {[%clk 0:01:09]} 34... Kg8
{[%clk 0:00:08.8]} 35. Bd5+ {[%clk 0:01:08.4]} 35... Kg7 {[%clk 0:00:07]} 36.
Rh4 {[%clk 0:01:03.8]} 36... Ne2+ {[%clk 0:00:06.1]} 37. Kf1 {[%clk 0:01:00.1]}
37... Nc3 {[%clk 0:00:07]} 38. Rg4+ {[%clk 0:00:59.4]} 38... Kf6 {[%clk
0:00:06.8]} 39. Bb3 {[%clk 0:00:55.6]} 39... a5 {[%clk 0:00:03.7]} 40. Rf4+
{[%clk 0:00:54.6]} 40... Ke5 {[%clk 0:00:02.7]} 41. Nc4+ {[%clk 0:00:53.4]} 1-0

[Event "Late-Titled-Tuesday-Blitz-April-23-2024"]
[Site "Chess.com"]
[Date "2024.04.23"]
[Round "10"]
[White "RebecaJimnz"]
[Black "Ghost_Pepper"]
[Result "1-0"]
[WhiteElo "2320"]
[BlackElo "2474"]
[TimeControl "180+1"]
[EndTime "15:57:15 PDT"]
[Termination "RebecaJimnz won on time"]

1. e4 {[%clk 0:03:00.9]} 1... c5 {[%clk 0:02:58.2]} 2. Nf3 {[%clk 0:03:00.8]}
2... d6 {[%clk 0:02:58.9]} 3. d4 {[%clk 0:03:01.2]} 3... cxd4 {[%clk 0:02:59.7]}
4. Nxd4 {[%clk 0:03:01.6]} 4... Nf6 {[%clk 0:03:00]} 5. Nc3 {[%clk 0:03:02.1]}
5... a6 {[%clk 0:03:00.9]} 6. Be2 {[%clk 0:02:53.9]} 6... e5 {[%clk 0:02:56.9]}
7. Nf3 {[%clk 0:02:52.4]} 7... Be7 {[%clk 0:02:54.8]} 8. Bg5 {[%clk 0:02:50.5]}
8... Be6 {[%clk 0:02:54.8]} 9. Bxf6 {[%clk 0:02:47.7]} 9... Bxf6 {[%clk
0:02:54.3]} 10. O-O {[%clk 0:02:47.1]} 10... O-O {[%clk 0:02:49]} 11. Nd5 {[%clk
0:02:45.6]} 11... Nd7 {[%clk 0:02:34.5]} 12. Bc4 {[%clk 0:02:43.9]} 12... Rc8
{[%clk 0:02:26.4]} 13. Bb3 {[%clk 0:02:43]} 13... Nc5 {[%clk 0:02:06]} 14. Re1
{[%clk 0:02:40.9]} 14... Be7 {[%clk 0:01:37.5]} 15. Qd2 {[%clk 0:02:23.3]} 15...
Nxb3 {[%clk 0:01:35]} 16. axb3 {[%clk 0:02:22.1]} 16... f5 {[%clk 0:01:14.7]}
17. exf5 {[%clk 0:02:15]} 17... Rxf5 {[%clk 0:01:13.2]} 18. Rad1 {[%clk
0:02:13.4]} 18... Bf8 {[%clk 0:01:06.4]} 19. Ne3 {[%clk 0:02:08.7]} 19... Rxf3
{[%clk 0:00:47.9]} 20. gxf3 {[%clk 0:02:07.4]} 20... Qf6 {[%clk 0:00:48.6]} 21.
Qe2 {[%clk 0:01:55.7]} 21... Bh3 {[%clk 0:00:38]} 22. Kh1 {[%clk 0:01:54.1]}
22... g6 {[%clk 0:00:29]} 23. Rg1 {[%clk 0:01:50.4]} 23... Bh6 {[%clk
0:00:27.2]} 24. Rg3 {[%clk 0:01:43.8]} 24... Bd7 {[%clk 0:00:25]} 25. Nd5 {[%clk
0:01:33.3]} 25... Qe6 {[%clk 0:00:15.1]} 26. Nb6 {[%clk 0:01:28.8]} 26... Rd8
{[%clk 0:00:14.2]} 27. Nxd7 {[%clk 0:01:28.4]} 27... Rxd7 {[%clk 0:00:15.1]} 28.
c3 {[%clk 0:01:17.2]} 28... d5 {[%clk 0:00:14.9]} 29. Re1 {[%clk 0:01:12]} 29...
Bf4 {[%clk 0:00:14.3]} 30. Rg4 {[%clk 0:01:10.4]} 30... Qf6 {[%clk 0:00:14.9]}
31. Qd3 {[%clk 0:00:47.1]} 31... Kg7 {[%clk 0:00:13.7]} 32. Reg1 {[%clk
0:00:45.7]} 32... Rd6 {[%clk 0:00:09.5]} 33. Kg2 {[%clk 0:00:44]} 33... b5
{[%clk 0:00:06.3]} 34. Kf1 {[%clk 0:00:40.1]} 34... Kf7 {[%clk 0:00:04.2]} 35.
h4 {[%clk 0:00:39.2]} 35... Ke6 {[%clk 0:00:01.5]} 36. h5 {[%clk 0:00:37.8]} 1-0